Cogmind - Beta 13 @@@ ROGUE MODE // 2024.04.17 @ 01:16:29 Player: EYE-VY Result: Destroyed by Piercing Trap Performance ------------- Evolutions (0) 0 Regions Visited (3) 600 Robots Destroyed (12) 60 Value Destroyed (326) 326 Prototype IDs (0) 0 Alien Tech Used (0) 0 Bonus (-28) -28 TOTAL SCORE: 958 Bonus ------- Friendly Fire -28 Cogmind --------- Core Integrity 0/250 Matter 290/300 Energy 246/250 System Corruption 0% Temperature Cool (2) Movement Walking (130) Location -10/Subcaves Parts ------- > --- POWER (1) -------- Ion Engine > --- PROPULSION (2) --- Makeshift Leg Myomer Leg > --- UTILITY (2) ------ Scrap Shield > --- WEAPON (2) ------- Subdweller Laser Mining Laser > --- INVENTORY (5) ---- Carbon-fiber Leg Improved Heat Sink Small Laser Multitool Enhanced Flamer Peak State ------------ > --- POWER ------------ Subdweller Power Source > --- PROPULSION ------- Makeshift Leg Myomer Leg > --- UTILITY ---------- Scrap Shield > --- WEAPON ----------- Subdweller Beam Cannon Enhanced Flamer > --- INVENTORY -------- Carbon-fiber Leg Improved Heat Sink Subdweller Optics Subdweller Laser Mining Laser [Rating: 23] Favorites ----------- Power Ion Engine Engine Ion Engine Propulsion Aluminum Leg Leg Aluminum Leg Utility Scrap Shield Device Structural Scanner Storage Small Storage Unit Protection Scrap Shield Weapon Enhanced Flamer Energy Gun Subdweller Laser Energy Cannon Subdweller Beam Cannon Ballistic Gun Assault Rifle Special Weapon Enhanced Flamer Build | -11 -10 -10 -10 ------- Run | Yrd Mat Min Sub Slots Evolved . | . . . . Power . | . . . . Propulsion . | . . . . Utility . | . . . . Weapon . | . . . . Parts Attached 34 | 6 10 2 16 Power 4 | 1 . . 3 Engine 4 | 1 . . 3 Core . | . . . . Reactor . | . . . . Propulsion 7 | 2 2 . 3 Treads . | . . . . Leg 7 | 2 2 . 3 Wheel . | . . . . Hover . | . . . . Flight . | . . . . Utility 6 | 1 4 . 1 Device 2 | . 2 . . Storage 2 | 1 1 . . Processor . | . . . . Hackware . | . . . . Protection 2 | . 1 . 1 Artifact . | . . . . Weapon 17 | 2 4 2 9 Energy Gun 4 | . 1 . 3 Energy Cannon 1 | . . . 1 Ballistic Gun 4 | 2 1 . 1 Ballistic Cannon . | . . . . Launcher . | . . . . Special Weapon 8 | . 2 2 4 Impact Weapon . | . . . . Slashing Weapon . | . . . . Piercing Weapon . | . . . . Special Melee Weapon . | . . . . Unidentified Prototypes . | . . . . Parts Lost 6 | . 6 . . Power . | . . . . Propulsion 2 | . 2 . . Utility 1 | . 1 . . Weapon 3 | . 3 . . Highest Loss Streak 4 | . 4 . . To Critical Strikes . | . . . . Average Slot Usage (%) 86 | . 94 100 82 Engine 11 | . 14 14 10 Leg 27 | . 24 28 28 Device 3 | . 9 14 . Storage 4 | . 15 14 . Protection 10 | . 1 . 13 Energy Gun 8 | . 5 14 9 Energy Cannon 4 | . . . 5 Ballistic Gun 4 | . 16 . . Special Weapon 11 | . 5 14 13 Naked Turns . | . . . . Heaviest Build 33 | 14 17 14 33 Greatest Support 45 | 20 20 20 45 Greatest Overweight (x) 5 | 2 5 . 1 Average Overweight (x) . | . . . . Largest Inventory Capacity 8 | 8 8 8 8 Average Capacity 5 | 6 8 8 5 Most Carried 8 | 5 8 8 8 Average Carried 5 | 3 5 8 4 Final Capacity 8 | 8 8 8 5 Final Carried 8 | 2 8 8 5 Class Distribution -------------------- 89% | Mutant 10% | Subdweller-Mutant Dominant Class ---------------- Mutant | -10/Materials Mutant | -10/Mines Mutant | -10/Subcaves Resources | -11 -10 -10 -10 ----------- Run | Yrd Mat Min Sub Matter Collected 717 | 245 260 . 212 Remotely . | . . . . Salvage Created 284 | . 222 . 62 Parts 21 | . 15 . 6 Haulers Intercepted . | . . . . Recyclers Shooed . | . . . . Parts Field Recycled . | . . . . Retrieved Matter . | . . . . Parts Self-Destructed 14 | . . . 14 Prevented . | . . . . Kills | -11 -10 -10 -10 ------- Run | Yrd Mat Min Sub Combat Hostiles Destroyed 12 | . 8 . 4 Guns 8 | . 7 . 1 Cannons 3 | . 1 . 2 Classes Destroyed 3 | . 2 . 1 Swarmer 5 | . 3 . 2 Grunt 5 | . 5 . . Subdweller 2 | . . . 2 Best Kill Streak 2 | . 2 . 2 Combat Bots Only 2 | . 2 . 2 Max Kills in Single Turn 1 | . 1 . 1 Gunslinging . | . . . . Exploded . | . . . . Melee . | . . . . Uniques/NPCs Destroyed . | . . . . Combat | -11 -10 -10 -10 -------- Run | Yrd Mat Min Sub Hostile Shots Fired 133 | . 76 . 57 Missed 41 | . 18 . 23 Damage Taken 1496 | . 738 . 758 Core 254 | . 142 . 112 Absorbed by Shields . | . . . . Core Remaining (%) 100 | 100 . . . Volleys Fired 74 | . 40 2 32 Largest 2 | . 2 1 2 Hottest 160 | . 140 100 160 Shots Fired 128 | . 75 2 51 Gun 96 | . 72 . 24 Cannon 13 | . . . 13 Launcher . | . . . . Special 19 | . 3 2 14 Kinetic 69 | . 69 . . Thermal 59 | . 6 2 51 Explosive . | . . . . Electromagnetic . | . . . . Robot Hit Streak 12 | . 10 . 12 Robot Miss Streak 5 | . 3 . 5 Penetration Max . | . . . . Secondary Targets 2 | . 1 . 1 Max Gunslinging Chain 1 | . 1 . 1 Shots Hit Robots 81 | . 49 . 32 Core Hits 22 | . 14 . 8 Critical Kills . | . . . . Critical Parts Destroyed . | . . . . Critical Strikes 2 | . . . 2 Burn 2 | . . . 2 Melee Attacks . | . . . . Impact . | . . . . Slashing . | . . . . Piercing . | . . . . Sneak Attacks . | . . . . Combat Hostiles . | . . . . Follow-up Attacks . | . . . . Damage Inflicted 1192 | . 632 . 560 Guns 803 | . 584 . 219 Cannons 241 | . . . 241 Explosions . | . . . . Melee . | . . . . Ramming . | . . . . Kinetic 560 | . 560 . . Thermal 632 | . 72 . 560 Explosive . | . . . . Electromagnetic . | . . . . Impact . | . . . . Slashing . | . . . . Piercing . | . . . . Highest Corruption . | . . . . Average Corruption . | . . . . Corruption Purged . | . . . . Corruption Blocked . | . . . . Overload Shots . | . . . . Overflow Damage . | . . . . Projectiles . | . . . . Explosions . | . . . . Melee . | . . . . Knockbacks . | . . . . Impact . | . . . . Kinetic . | . . . . Secondary . | . . . . Self-Inflicted Damage . | . . . . Shots . | . . . . Rammed . | . . . . Targets Rammed . | . . . . Kicked . | . . . . Crushed . | . . . . Highest Temperature 245 | . 138 22 245 Average Temperature 41 | . 31 11 59 Received Heat Transfer 694 | . 351 . 343 Siege Activations . | . . . . Robots Corrupted . | . . . . Combat Hostiles . | . . . . Parts Fried . | . . . . Impact Corruptions . | . . . . Robots Melted 1 | . . . 1 Combat Hostiles 1 | . . . 1 Parts Melted 2 | . . . 2 Heat Transferred 1973 | . 150 . 1823 Parts Sabotaged . | . . . . Parts Stolen . | . . . . Parts Stripped . | . . . . Power Chain Reactions . | . . . . Alert | -11 -10 -10 -10 ------- Run | Yrd Mat Min Sub Peak Influence 209 | . 209 9 . Initial 9 | . . 9 . Average 62 | . 75 9 . Maximum Alert Level 1 | . 1 . . Low Security (%) 94 | 100 93 100 . Level 1 5 | . 6 . . Level 2 . | . . . . Level 3 . | . . . . Level 4 . | . . . . Level 5 . | . . . . High Security . | . . . . Max Security . | . . . . Squads Dispatched 1 | . 1 . . Investigation 1 | . 1 . . Extermination . | . . . . Reinforcement . | . . . . Assault . | . . . . Garrison . | . . . . Intercept . | . . . . Searches Triggered . | . . . . Construction Impeded . | . . . . Haulers Reinforced . | . . . . Active Scanning Responses . | . . . . Cargo Convoy Interrupts . | . . . . Stealth | -11 -10 -10 -10 --------- Run | Yrd Mat Min Sub Distress Signals . | . . . . Communications Jammed . | . . . . Distress Signals . | . . . . Times Spotted 30 | . 12 . 18 Peak Tracking Total 6 | . 5 . 6 Tactical Retreats 1 | . 1 . . Traps | -11 -10 -10 -10 ------- Run | Yrd Mat Min Sub Traps Triggered 4 | . 1 . 3 Indirectly . | . . . . Trap Hack Attempts . | . . . . Triggered . | . . . . Disarmed . | . . . . Reprogrammed . | . . . . Reused . | . . . . Traps Extracted . | . . . . Installed . | . . . . Triggered . | . . . . Machines | -11 -10 -10 -10 ---------- Run | Yrd Mat Min Sub Machines Disabled . | . . . . Max in Single Turn . | . . . . Machines Repaired . | . . . . Machines Dismantled . | . . . . Machines Sabotaged . | . . . . Overloaded Fab Kills . | . . . . Hacking | -11 -10 -10 -10 --------- Run | Yrd Mat Min Sub Machines Accessed 3 | . 3 . . Terminals 2 | . 2 . . Fabricators . | . . . . Repair Stations . | . . . . Recycling Units 1 | . 1 . . Scanalyzers . | . . . . Garrison Access . | . . . . Total Hacks 6 | . 6 . . Successful 4 | . 4 . . Failed 1 | . 1 . . Catastrophic . | . . . . Database Lockouts 1 | . 1 . . Manual . | . . . . Terminals 4 | . 4 . . Fabricators . | . . . . Repair Stations . | . . . . Recycling Units 2 | . 2 . . Scanalyzers . | . . . . Garrison Access . | . . . . Terminal Hacks 3 | . 3 . . Record 2 | . 2 . . Recall Reinforcements 1 | . 1 . . Fabricator Hacks . | . . . . Repair Station Hacks . | . . . . Recycling Unit Hacks 1 | . 1 . . Retrieve Components 1 | . 1 . . Scanalyzer . | . . . . Garrison Access Hacks . | . . . . Unauthorized Hacks . | . . . . Terminals . | . . . . Fabricators . | . . . . Repair Stations . | . . . . Recycling Units . | . . . . Scanalyzers . | . . . . Garrison Access . | . . . . Data Cores Recovered . | . . . . Used . | . . . . Hacking Detections 1 | . 1 . . Full Trace Events . | . . . . Feedback Events . | . . . . Feedback Blocked . | . . . . Robot Schematics Acquired . | . . . . Robots Built . | . . . . Authchips . | . . . . Time . | . . . . Total Robot Build Rating . | . . . . Part Schematics Acquired . | . . . . Parts Built . | . . . . Authchips . | . . . . Time . | . . . . Total Part Build Rating . | . . . . Parts Repaired . | . . . . Time . | . . . . Parts Recycled . | . . . . Recycled Matter . | . . . . Retrieved Matter . | . . . . Retrieved Components 9 | . 9 . . Parts Scanalyzed . | . . . . Part Schematics Acquired . | . . . . Parts Damaged . | . . . . Bothacking | -11 -10 -10 -10 ------------ Run | Yrd Mat Min Sub Used RIF Installer . | . . . . Robots Hacked . | . . . . Non-combat . | . . . . Combat . | . . . . Robot Hacks Applied . | . . . . Relay Couplers Released . | . . . . Fabnet Peak Effective % . | . . . . Robots Rewired . | . . . . Allies Hacked . | . . . . Hacks Repelled . | . . . . Allies | -11 -10 -10 -10 -------- Run | Yrd Mat Min Sub Total Allies . | . . . . Largest Group . | . . . . Highest-Rated Group . | . . . . Highest-Rated Ally . | . . . . Total Orders . | . . . . Ally Attacks . | . . . . Total Damage . | . . . . Kills . | . . . . Allies Corrupted . | . . . . Allies Melted . | . . . . Intel | -11 -10 -10 -10 ------- Run | Yrd Mat Min Sub Robot Analysis Total . | . . . . Derelict Logs Recovered 2 | . . 1 1 Drone Launches . | . . . . Drone Recoveries . | . . . . Exploration | -11 -10 -10 -10 ------------- Run | Yrd Mat Min Sub Turns Passed 2176 | 52 570 80 1474 Spaces Moved 1336 | 43 287 57 949 Core 28 | 27 1 . . Treads . | . . . . Legs 1308 | 16 286 57 949 Wheels . | . . . . Hover . | . . . . Flight . | . . . . Fastest Speed 50 | 50 120 120 120 Average Speed 130 | 93 126 120 134 Slowest Speed 300 | 150 300 120 190 Overloaded Moves . | . . . . Propulsion Burnouts . | . . . . Robots Hopped . | . . . . Cave-ins Triggered . | . . . . Exploration Rate (%) 32 | 3 41 18 68 Regions Visited 3 Branch Regions 2 Pre-discovered Areas 2 | . . . 2 Known Exits Taken 1 | . . 1 . Unknown Exits Taken 2 | 1 1 . . Scrap Searched . | . . . . Spaces Dug . | . . . . Terrain Destroyed 3 | . . . 3 Melee . | . . . . Projectile 3 | . . . 3 AOE . | . . . . Terrain Rammed . | . . . . Walls Destroyed . | . . . . Machines Disabled . | . . . . Actions | -11 -10 -10 -10 --------- Run | Yrd Mat Min Sub Total 1612 | 53 413 63 1083 Wait 101 | . 61 . 40 Move 1333 | 42 286 56 949 Hop . | . . . . Pick Up 32 | 5 14 1 12 Fast Attach 6 | 3 . . 3 Attach 11 | 3 7 . 1 Detach 1 | . . . 1 Swap 17 | . 3 2 12 Drop 24 | . 2 2 20 Fire 74 | . 40 2 32 Melee . | . . . . Ram . | . . . . Kick . | . . . . Crush . | . . . . Escape Stasis . | . . . . Rewire . | . . . . Trap . | . . . . Miscellaneous 13 | . . . 13 Route ------- -11/Scrapyard -10/Materials (discovered 3 exits: [*Mat] / [*Min x2]) -10/Mines -10/Subcaves History --------- Turn | Location | Event 6 | -11/Scrapyard | Discovered new exit (range 15) 53 | -11/Scrapyard | Entered Materials 92 | -10/Materials | Discovered new exit (range 16) 211 | -10/Materials | Discovered new exit (range 9) 304 | -10/Materials | Build established: Mutant 358 | -10/Materials | Discovered new exit (range 5) 403 | -10/Materials | Core integrity fell below 50% 431 | -10/Materials | Lost 4 parts (1n1u2w) 501 | -10/Materials | Central database locked down 623 | -10/Materials | Entered Mines 638 | -10/Mines | A weapon hastily lodged in a ceiling crevice suddenly fell to the ground 652 | -10/Mines | Identified exit to Subcaves 703 | -10/Mines | Entered Subcaves 817 | -10/Subcaves | Ambushed by swarm of Subdwellers 1071 | -10/Subcaves | Learned location of Storage (-7) 1494 | -10/Subcaves | Core integrity fell below 20% 1926 | -10/Subcaves | Learned location of Zion (-6) 1926 | -10/Subcaves | Met a Zionite searching for "candidates" 2177 | -10/Subcaves | Destroyed by Piercing Trap Last Messages --------------- Dropped Sub. Optics. Acquired Multitool. Subatomizers dissect the Sub. Monowheel, destroying it. L7-INR(z): "She is not going to be happy we haven't found any suitable candidates yet." L7-INR(z): "Hey you! It's really dangerous down here, I feel that you could die at any moment. For your health and safety might I suggest a trip to Zion?" World map updated: -6/Zion. Triggered Piercing Trap. Spikes shoot up from the floor. Critical hit (Impale). Triggered Piercing Trap. Spikes shoot up from the floor. Critical hit (Impale). Triggered Piercing Trap. Spikes shoot up from the floor. Critical hit (Impale). Map ----- +----------------------------------------------------+ | ??????????????????????????????????????????????? | | ??????????????????????????????????????????????? | | ??????????????????????????????????????????????? | | ??????????????????????????????????????????????? | | ??????????????????????????????????????????????? | | ??????????????????????????????????????????????? | | ??????????????????????????????????????????????? | | ??????????????????????????????????????????????? | | ??????????????????????????????????????????????? | | ??????????????????????????????????????????????? | | ?????????????????????????#????????????????????? | | ????????????????????????? ????????????????????? | | ????????????????????????? #??#????????????????? | | ????????????????????????? ## ????????????????? | | ????????????????????????? ?????????????????? | | ????????????????????????? ?????????????????? | | ????????????????????????? ?????????????????? | | ???????????????#????????? #?????????????????? | | ???????????????# ????????# ?????????????????? | | ???????????????# ?????? ##????????????????? | | ?????????? ???# ????? #????????????????? | | ???????? #?# ????# ^#????????????????? | | ?????? ## ???# ##???????????????? | | ?????? ### #???????????????? | | ?????# #???????????????? | | ?????# @ ##??????????????? | | ??????# ??## ####g #??????????????? | | ??????? ####?????## #??????????????? | | ???????? ???### ##??????????????? | | ??????????# ??## ##???????????????? | | ??????????# #### #????????????????? | | ??????????# # ##????????????????? | | ??????????# ##?????????????????? | | ??????????# ## ##??????????????????? | | ??????????#### # #####???????????????????? | | ?????????????## ####???????##??????????????? | | ??????????????## ##???????# ##?????????????? | | ??????????????## ###????# #?????????????? | | ?????????????## ##### #?????????????? | | ?????????????# ## #??????????????? | | ?????????????# #?# #??????????????? | | ?????????????## ### #??????????????? | | ??????????????# ## #??????????????? | | ??????????????## #??????????????? | | ??????????????## ##?????????????? | | ??????????????# #?????????????? | | ??????????????# ## #?????????????? | | ??????????????# ## #?????????????? | | ??????????????####### #?????????????? | | ????????????????????### #?????????????? | +----------------------------------------------------+ Best States ------------- Heat Dissipation 25 Energy Generation 15 Energy Capacity 500 Matter Stores 300 Matter Capacity 300 Sight Range 16 Terrain Scan Density 10 Armor Coverage 800 Evasion (%) 55 Item Schematics ----------------- None Robot Schematics ------------------ None Fabricated ------------ Nothing Alien Tech Used ----------------- None Achievements -------------- None Challenges ------------ None Game ------ Seed MassMachineExpander Manual? 0 Play Time 00:24:48 Cumulative 14.3 hours Start 2024.04.17 @ 00:53:20 End 2024.04.17 @ 01:16:29 Sessions 1 Manual Loads 0 Difficulty Rogue Special Mode None Game No. 15 Rogue 15 Adventurer 0 Explorer 0 Win Type - Total 0 Types 0/0/0/0/0/0/0/0/0 Lore% 18 Gallery% 22 Achievement% 17 Wizard Run 0 Options --------- Layout 1 ASCII 0 Keyboard 0 Movement Mouse Keybinds 0 Fullscreen 1 Font 24/Smallcaps Map View 50x35 Zoom Use 0% Tactical HUD 0 Map Filters NONE Filters NONE Steam 1 RUN: 95e06c44-3687-4e43-a80e-46ec975115a5